bitfinex-derivatives/quotes_SOLF0:USTF0_20251109
["timestamp","ask_amount","ask_price","bid_price","bid_amount"]
[1762721246542,1.91,165.59,165.56,3.09]
[1762721246747,1.91,165.59,165.53,3.09]
[1762721246951,1.95530601,165.59,165.56,3.13080143]
[1762721247246,0.91123809,165.59,165.56,3.13552121]
[1762721248044,6.34773809,165.59,165.56,3.13552121]
[1762721248445,0.91123809,165.59,165.56,3.13552121]
[1762721249447,0.04320571,165.59,165.56,3.13552121]
[1762721255953,0.04320571,165.59,165.56,8.57272121]
[1762721256153,0.04320571,165.59,165.56,3.13552121]
[1762721256350,11.91446119,165.73,165.56,3.13552121]
[1762721256553,0.91,165.68,165.56,3.09]
[1762721257447,0.04352277,165.64,165.6,3.00308163]
[1762721257949,0.04352277,165.64,165.6,8.43888163]
[1762721258154,0.04352277,165.64,165.61,2.96]
[1762721262757,0.04352277,165.64,165.61,8.3956]
[1762721263158,0.04352277,165.64,165.62,2.96]
[1762721268763,0.04352277,165.64,165.62,8.3952]
[1762721269065,0.04352277,165.64,165.63,3.1]
[1762721269864,0.04352277,165.64,165.6,0.04308163]
[1762721269865,0.04352277,165.64,165.61,3.1]
[1762721270172,0.96352277,165.64,165.6,0.04308163]
[1762721270371,0.96352277,165.64,165.6,3.14308163]
[1762721270973,6.39832277,165.64,165.6,3.14308163]
[1762721274970,0.96352277,165.64,165.6,3.14308163]
[1762721277174,0.04352277,165.64,165.6,3.14308163]
[1762721278972,0.92,165.63,165.6,0.04308163]
[1762721279178,0.92,165.61,165.55,3.1]
[1762721279978,0.92,165.58,165.55,3.1]
[1762721280177,0.96126491,165.58,165.55,3.14233982]
[1762721280574,0.04126491,165.58,165.55,3.14233982]
[1762721280975,0.92,165.65,165.56,3.1]
[1762721281180,0.92,165.64,165.58,3.1]
[1762721281980,6.39061776,165.63,165.6,3.14]
[1762721282182,6.39061776,165.63,165.6,3.17833371]
[1762721284178,6.3455,165.62,165.6,0.03833371]
[1762721284379,0.91,165.61,165.6,0.03833371]
[1762721286588,6.3455,165.62,165.6,0.03833371]
[1762721287288,0.91,165.61,165.6,0.03833371]
[1762721295194,0.91,165.57,165.51,3.14]
[1762721295889,5.4374,165.56,165.51,3.14]
[1762721296088,0.91,165.58,165.48,3.14]
[1762721296291,0.04192843,165.55,165.52,3.14]
[1762721296494,0.04345086,165.55,165.52,3.14]
[1762721296996,0.04345086,165.55,165.54,3.14]
[1762721298994,0.91,165.61,165.55,3.14]
[1762721299590,5.4362,165.6,165.55,3.14]
[1762721299890,0.03970303,165.59,165.57,3.14]
[1762721302598,5.47630303,165.59,165.57,3.14]
[1762721302798,0.91,165.58,165.56,0.04629491]
[1762721303300,0.91,165.57,165.56,0.04629491]
[1762721304703,6.3477,165.55,165.5,3.14]
[1762721304897,0.91,165.54,165.5,3.14]
[1762721305604,5.4377,165.55,165.5,3.14]
[1762721305796,0.04065714,165.54,165.51,3.17871903]
[1762721306401,5.47885714,165.54,165.51,3.17871903]
[1762721306602,0.91,165.53,165.51,0.03871903]
[1762721308099,0.91,165.52,165.51,0.03871903]
[1762721309006,6.3485,165.53,165.51,0.03871903]
[1762721310104,0.91,165.52,165.51,0.03871903]
[1762721315111,0.92,165.5,165.45,2.89]
[1762721315503,0.92,165.48,165.43,2.89]
[1762721316006,0.92,165.46,165.44,0.04384017]
[1762721316213,0.92,165.46,165.43,0.04200789]
[1762721316403,6.3608,165.46,165.43,0.04200789]
[1762721316601,0.92,165.45,165.43,0.04200789]
[1762721317300,0.04362289,165.47,165.44,2.89]
[1762721319613,0.96362289,165.47,165.43,2.93200789]
[1762721323715,0.04362289,165.47,165.43,2.93200789]
[1762721328115,0.04362289,165.47,165.44,3.09]
[1762721329115,0.04362289,165.47,165.43,5.48340789]
[1762721329116,0.04362289,165.47,165.46,3.09]
[1762721330316,0.93,165.57,165.46,3.09]
[1762721331414,0.04384455,165.53,165.51,3.09]
[1762721336426,0.97384455,165.53,165.5,0.04166336]
[1762721336620,0.97384455,165.53,165.5,3.13166336]
[1762721337229,0.93,165.51,165.5,0.04166336]
[1762721349933,6.3588,165.52,165.5,0.04166336]
[1762721350232,5.4388,165.52,165.5,2.89166336]
[1762721351034,6.3588,165.52,165.5,2.89166336]
[1762721352936,6.3588,165.52,165.5,0.04166336]
[1762721355040,0.92,165.51,165.5,0.04166336]
[1762721357336,6.3588,165.52,165.5,0.04166336]
[1762721357637,6.3588,165.52,165.5,2.89166336]
[1762721357638,5.4388,165.52,165.5,2.89166336]
[1762721359234,0.04384455,165.53,165.5,2.89166336]
[1762721359938,6.3588,165.52,165.5,0.04166336]
[1762721360143,0.92,165.51,165.5,0.04166336]
[1762721360844,0.92,165.51,165.45,2.85]
[1762721361947,6.40122552,165.5,165.47,2.85]
[1762721362240,0.92,165.49,165.46,0.04019691]
[1762721362446,0.92,165.49,165.46,2.89019691]
[1762721363741,0.96172552,165.5,165.46,2.89019691]
[1762721364146,6.40122552,165.5,165.46,2.89019691]
[1762721366453,6.3598,165.49,165.46,2.89019691]
[1762721373373,5.4401,165.48,165.46,2.89019691]
[1762721375867,6.3501,165.48,165.46,2.89019691]
[1762721376481,5.48112552,165.5,165.46,2.89019691]
[1762721376670,6.39112552,165.5,165.46,2.89019691]
[1762721377178,0.91,165.49,165.46,2.89019691]
[1762721377373,0.04172552,165.5,165.46,2.89019691]
[1762721378281,0.04172552,165.5,165.49,3.01]
[1762721378667,6.3478,165.55,165.5,3.01]
[1762721378871,5.4378,165.55,165.5,3.01]
[1762721379782,0.04513687,165.54,165.52,3.01]
[1762721380082,5.48333687,165.54,165.52,3.01]
[1762721380681,0.04513687,165.54,165.52,3.01]
[1762721386083,0.91,165.53,165.51,0.04370249]
[1762721387992,6.3486,165.53,165.51,0.04370249]
[1762721388893,0.92,165.52,165.51,0.04370249]
[1762721389594,0.96513687,165.54,165.51,3.05370249]
[1762721389901,0.04513687,165.54,165.51,3.05370249]
[1762721391187,0.96513687,165.54,165.51,3.05370249]
[1762721393294,0.04513687,165.54,165.51,3.05370249]
[1762721395495,5.48323687,165.54,165.51,3.05370249]
[1762721396498,6.40323687,165.54,165.51,3.05370249]
[1762721398494,0.04513687,165.54,165.51,3.05370249]
[1762721399803,0.92,165.59,165.51,3.05370249]
[1762721400298,0.92,165.56,165.51,3.05370249]
[1762721400500,0.92,165.56,165.51,3.01]
[1762721400796,6.3581,165.54,165.52,0.04186415]
[1762721400995,0.92,165.54,165.51,0.0426658]
[1762721402106,0.95605419,165.55,165.51,3.0326658]
[1762721402305,0.04605419,165.55,165.51,3.0326658]
[1762721402488,0.95605419,165.55,165.51,3.0326658]
[1762721402690,5.48385419,165.55,165.51,3.0326658]
[1762721403396,0.04605419,165.55,165.51,3.0326658]
[1762721403902,0.04605419,165.55,165.51,8.4714658]
[1762721404104,0.04605419,165.55,165.52,2.99]
[1762721406206,0.91,165.61,165.52,2.99]
[1762721406407,6.3458,165.61,165.54,2.99]
[1762721406800,0.15926,165.63,165.54,2.99]
[1762721407307,0.15926,165.63,165.48,18.54048734]
[1762721407308,0.9530737,165.6,165.57,0.04506735]
[1762721407603,0.9530737,165.6,165.57,3.03506735]
[1762721409002,6.3892737,165.6,165.57,3.03506735]
[1762721409505,0.0430737,165.6,165.57,3.03506735]
[1762721415212,6.3891737,165.6,165.57,3.03506735]
[1762721418599,0.0430737,165.6,165.57,3.03506735]
[1762721421509,0.0430737,165.6,165.59,2.99]
[1762721422214,0.91,165.66,165.6,2.99]
[1762721423216,0.95091895,165.65,165.62,2.99]
[1762721424010,6.38541895,165.65,165.62,2.99]
[1762721424910,0.91,165.73,165.62,2.99]
[1762721426012,0.91,165.73,165.67,2.99]
[1762721426013,6.3419,165.73,165.67,2.99]
[1762721426518,0.91,165.73,165.67,2.99]
[1762721430120,6.342,165.73,165.67,2.99]
[1762721430805,5.4322,165.72,165.67,2.99]
[1762721431015,0.91,165.71,165.67,2.99]
[1762721431215,0.91,165.71,165.67,3.03178502]
[1762721431912,6.3426,165.71,165.67,3.03178502]
[1762721432110,0.92,165.74,165.67,3.03178502]
[1762721433119,5.4319,165.73,165.67,3.03178502]
[1762721433316,0.92,165.74,165.68,2.9]
[1762721435318,0.92,165.74,165.67,0.04178502]
[1762721435627,0.92,165.72,165.67,0.04178502]
[1762721435818,6.3529,165.7,165.68,0.04157976]
[1762721436826,0.92,165.72,165.68,2.94157976]
[1762721438221,7.5656647,165.75,165.68,2.94157976]
[1762721438422,6.3513,165.75,165.68,2.94157976]
[1762721438722,0.92,165.75,165.68,2.94157976]
[1762721439125,0.92,165.75,165.69,2.9]
[1762721441019,5.4316,165.74,165.69,2.9]
[1762721446329,6.3516,165.74,165.69,2.9]
[1762721449628,0.91,165.72,165.69,2.9]
[1762721451630,0.91,165.73,165.69,2.9]
[1762721457131,6.3419,165.73,165.69,2.9]
[1762721460626,6.3419,165.73,165.68,5.47487976]
[1762721460627,0.91,165.72,165.68,8.60487976]
[1762721460826,0.91,165.71,165.68,0.04157976]
[1762721461436,2.1243647,165.69,165.68,0.04157976]
[1762721461629,0.91,165.72,165.67,3.17208138]
[1762721461830,0.91,165.72,165.69,3.13]
[1762721462032,0.91,165.72,165.69,3.16886358]
[1762721462235,7.5661647,165.73,165.69,3.16886358]
[1762721464841,6.3518,165.73,165.69,3.16886358]
[1762721465333,6.3521,165.72,165.69,3.16886358]
[1762721465738,0.92,165.71,165.69,0.03886358]
[1762721465934,0.92,165.71,165.68,2.93050877]
[1762721466832,0.92,165.7,165.68,2.93050877]
[1762721468941,0.92,165.7,165.68,0.04050877]
[1762721469327,0.92,165.69,165.68,0.04050877]
[1762721470129,0.92,165.76,165.68,2.93050877]
[1762721470331,0.92,165.76,165.71,2.89]
[1762721470741,0.92,165.74,165.7,0.03990585]
[1762721471045,0.92,165.74,165.7,0.04382507]
[1762721471244,0.92,165.71,165.7,0.04382507]
[1762721472450,0.92,165.71,165.7,2.93382507]
[1762721472643,6.3516,165.74,165.7,2.93382507]
[1762721474638,0.92,165.74,165.7,2.93382507]
[1762721474942,6.3509,165.76,165.7,2.93382507]
[1762721475140,0.92,165.76,165.7,2.93382507]
[1762721475949,5.4312,165.75,165.7,2.93382507]
[1762721476149,6.3512,165.75,165.7,2.93382507]
[1762721476350,0.92,165.74,165.7,2.93382507]
[1762721478154,6.3516,165.74,165.7,2.93382507]
[1762721478447,0.92,165.73,165.7,0.04382507]
[1762721478842,0.92,165.71,165.7,0.04382507]
[1762721483749,5.433,165.7,165.65,2.89]
[1762721484055,0.92,165.69,165.65,2.89]
[1762721485051,0.95884395,165.69,165.65,2.92991965]
[1762721486250,6.39204395,165.69,165.65,2.92991965]
[1762721491460,6.3535,165.68,165.65,2.92991965]
[1762721493064,0.91,165.66,165.65,0.03991965]
[1762721497264,0.91,165.62,165.6,2.89]
[1762721497468,0.91,165.62,165.58,2.89]
[1762721498267,0.95356019,165.62,165.58,2.93333839]
[1762721499962,0.04356019,165.62,165.58,2.93333839]
[1762721500168,0.04356019,165.62,165.61,4.78818048]
[1762721501167,0.91,165.7,165.62,2.89]
[1762721502068,0.04018453,165.68,165.64,0.03959684]
[1762721502261,0.04018453,165.68,165.64,2.92959684]
[1762721504866,0.04018453,165.68,165.66,2.89]
[1762721521789,0.04018453,165.68,165.65,5.4342]
[1762721521790,1.00018453,165.68,165.65,2.98]
[1762721522086,1.00018453,165.68,165.64,2.88959684]
[1762721522475,0.96,165.66,165.59,2.85]
[1762721522880,0.96,165.66,165.55,2.85]
[1762721523190,0.96,165.61,165.55,2.85]
[1762721523481,6.3958,165.61,165.55,2.85]
[1762721523688,0.96,165.59,165.56,0.03941337]
[1762721523879,1.00238417,165.59,165.56,0.03840948]
[1762721524191,0.96,165.57,165.56,0.03840948]
[1762721524993,6.3974,165.56,165.5,2.85]
[1762721525588,0.96,165.54,165.5,2.85]
[1762721525784,0.96,165.54,165.47,2.85]
[1762721525984,0.99985815,165.52,165.49,0.04479233]
[1762721526586,0.03985815,165.52,165.49,2.89479233]
[1762721527490,0.03985815,165.52,165.51,2.85]
[1762721529189,0.99985815,165.52,165.49,0.04479233]
[1762721529391,0.96,165.5,165.49,0.04479233]
[1762721531493,6.3995,165.5,165.43,145.45690872]
[1762721532390,0.04212122,165.48,165.45,0.03834048]
[1762721532596,1.00212122,165.48,165.45,0.03834048]
[1762721538897,0.04212122,165.48,165.45,2.88834048]
[1762721539799,1.00212122,165.48,165.45,2.88834048]
[1762721540498,1.00212122,165.48,165.45,0.03834048]
[1762721540898,1.00212122,165.48,165.45,2.88834048]
[1762721541899,0.04212122,165.48,165.45,2.88834048]
[1762721545402,0.04212122,165.48,165.45,4.78652096]
[1762721545603,0.04212122,165.48,165.46,2.85]
[1762721554004,0.04212122,165.48,165.46,8.2905]
[1762721554299,0.04212122,165.48,165.47,2.99]
[1762721555010,0.04212122,165.48,165.47,4.207058]
[1762721562418,5.4385,165.53,165.49,2.99]
[1762721562806,6.4085,165.53,165.49,2.99]
[1762721563312,0.97,165.52,165.49,3.03130761]
[1762721563517,0.97,165.51,165.49,0.04130761]
[1762721564118,6.4092,165.51,165.49,0.04130761]
[1762721564312,0.97,165.5,165.49,0.04130761]
[1762721568813,6.3992,165.51,165.49,3.08130761]
[1762721569122,0.96,165.52,165.49,3.08130761]
[1762721571219,0.04260182,165.53,165.49,3.08130761]
[1762721571816,1.00260182,165.53,165.49,3.08130761]
[1762721572619,0.04260182,165.53,165.49,8.52080761]
[1762721572823,0.04260182,165.53,165.5,3.04]
[1762721577126,1.0,165.62,165.52,3.04]
[1762721577330,1.0,165.62,165.55,3.04]
[1762721577538,6.4355,165.62,165.55,8.4775]
[1762721577732,6.4355,165.62,165.56,3.04]
[1762721578332,0.04351635,165.61,165.58,3.04]
[1762721580328,6.47931635,165.61,165.58,3.04]
[1762721581135,1.0,165.6,165.57,0.04214121]
[1762721582436,1.01,165.58,165.57,0.04214121]
[1762721582838,1.01,165.55,165.49,9.536558]
[1762721583337,1.01,165.55,165.49,4.097058]
[1762721583726,1.01,165.55,165.5,0.04432168]
[1762721583931,0.0399921,165.54,165.51,2.88]
[1762721584431,1.0499921,165.54,165.51,2.88]
[1762721584734,0.0399921,165.54,165.51,2.88]
[1762721586440,1.0499921,165.54,165.51,2.88]
[1762721586630,1.0499921,165.54,165.5,0.04432168]
[1762721586835,1.0499921,165.54,165.5,2.92432168]
[1762721587333,0.0399921,165.54,165.5,2.92432168]
[1762721587929,1.01,165.53,165.5,0.04432168]
[1762721589442,6.4488,165.52,165.5,0.04432168]
[1762721589643,1.01,165.51,165.5,0.04432168]
[1762721589838,6.4488,165.52,165.5,0.04432168]
[1762721590038,1.01,165.51,165.5,0.04432168]
[1762721600758,5.4398,165.49,165.43,2.88]
[1762721600961,6.4498,165.49,165.43,2.88]
[1762721601453,6.4501,165.48,165.43,2.88]
[1762721601653,1.01,165.47,165.43,2.88]
[1762721601955,1.05611564,165.47,165.43,2.9256598]
[1762721604556,6.49651564,165.47,165.43,2.9256598]
[1762721606159,0.04611564,165.47,165.43,2.9256598]
[1762721606861,0.04611564,165.47,165.46,2.88]
[1762721607856,1.05611564,165.47,165.44,2.88]
[1762721609066,6.49651564,165.47,165.44,2.88]
[1762721612960,1.01,165.46,165.44,2.88]
[1762721615067,0.04611564,165.47,165.44,2.88]
[1762721615666,0.04611564,165.47,165.46,2.92]
[1762721615861,1.01,165.53,165.46,2.92]
[1762721616668,1.01,165.53,165.39,10.8853]
[1762721616669,1.01,165.53,165.49,2.92]
[1762721616867,1.05563195,165.53,165.49,2.96402567]
[1762721617271,0.04563195,165.53,165.49,2.96402567]
[1762721619770,0.04563195,165.53,165.49,8.40352567]
[1762721620172,0.04563195,165.53,165.5,2.92]
[1762721621173,1.05563195,165.53,165.49,0.04402567]
[1762721621982,1.01,165.5,165.49,0.04402567]
[1762721626068,6.4497,165.49,165.44,2.92]
[1762721626568,6.4488,165.52,165.45,2.92]
[1762721626873,1.01,165.52,165.45,2.92]
[1762721627069,0.04144643,165.5,165.48,2.85]
[1762721627773,0.04144643,165.5,165.48,4.75319554]
[1762721628976,0.04144643,165.5,165.49,2.85]
[1762721630580,1.05144643,165.5,165.47,0.04550826]
[1762721631075,1.05144643,165.5,165.47,2.89550826]
[1762721631376,0.04144643,165.5,165.47,2.89550826]
[1762721631772,0.04144643,165.5,165.47,8.33560826]
[1762721631972,0.04144643,165.5,165.48,2.85]
[1762721637375,0.04144643,165.5,165.49,10.19279554]
[1762721637576,1.01,165.55,165.5,2.85]
[1762721638483,0.04306889,165.54,165.51,2.89341754]
[1762721639385,0.04306889,165.54,165.52,1.90319554]
[1762721639577,0.04306889,165.54,165.53,2.85]
[1762721642478,5.60782,165.59,165.54,2.88]
[1762721642677,6.60782,165.59,165.54,2.88]
[1762721643279,5.60782,165.59,165.54,2.88]
[1762721643589,1.0387716,165.58,165.55,2.91943953]
[1762721645889,0.0387716,165.58,165.56,2.88]
[1762721646793,1.0,165.64,165.57,2.88]
[1762721646980,1.0,165.64,165.6,2.88]
[1762721647794,0.03934614,165.64,165.6,2.92243876]
[1762721648996,0.03934614,165.64,165.63,2.88]
[1762721649291,1.03934614,165.64,165.61,2.88]
[1762721655292,0.03934614,165.64,165.61,2.88]
[1762721665096,1.03934614,165.64,165.6,0.04243876]
[1762721665605,6.47414614,165.64,165.6,2.92243876]
[1762721665903,1.0,165.63,165.6,2.92243876]
[1762721670207,6.4351,165.63,165.6,0.04243876]
[1762721670608,1.0,165.62,165.6,0.04243876]
[1762721672107,0.03934614,165.64,165.6,8.59833876]
[1762721672409,0.03934614,165.64,165.61,3.12]
[1762721672608,1.03934614,165.64,165.61,3.12]
[1762721673007,0.03934614,165.64,165.61,3.12]
[1762721673811,1.03934614,165.64,165.61,3.12]
[1762721675811,0.03934614,165.64,165.61,3.12]
[1762721677017,1.03934614,165.64,165.61,3.12]
[1762721677512,1.03934614,165.64,165.6,1.25788564]
[1762721677821,1.0,165.63,165.6,0.04243876]
[1762721679117,1.0,165.61,165.6,0.04243876]
[1762721684020,1.0,165.59,165.55,3.12]
[1762721684820,5.4359,165.61,165.55,3.12]
[1762721685013,0.04420355,165.6,165.56,3.1612926]
[1762721685416,1.04420355,165.6,165.56,3.1612926]
[1762721685924,0.04420355,165.6,165.58,3.12]
[1762721686722,0.04420355,165.6,165.59,4.33544688]
[1762721693235,0.04420355,165.6,165.59,3.12]
[1762721694139,5.4342,165.66,165.59,3.12]
[1762721694336,5.4342,165.66,165.62,2.98]
[1762721694935,5.47178135,165.66,165.62,3.01914394]
[1762721695838,0.03758135,165.66,165.62,3.01914394]
[1762721696143,1.06758135,165.66,165.62,3.01914394]
[1762721697238,0.03758135,165.66,165.62,3.01914394]
[1762721697746,0.03758135,165.66,165.64,2.98]
[1762721698135,1.06758135,165.66,165.63,2.98]
[1762721699135,0.03758135,165.66,165.63,2.98]
[1762721699441,0.03758135,165.66,165.63,4.19544688]
[1762721699941,0.03758135,165.66,165.64,2.98]
[1762721718260,0.03758135,165.66,165.64,4.19544688]
[1762721718458,0.03758135,165.66,165.65,3.04]
[1762721724263,0.03758135,165.66,165.63,4.25544688]
[1762721724451,0.03758135,165.66,165.64,3.04]
[1762721724968,0.03758135,165.66,165.63,1.21544688]
[1762721724969,1.07758135,165.66,165.63,4.25544688]
[1762721725170,1.07758135,165.66,165.63,3.04]
[1762721725566,6.51168135,165.66,165.63,3.04]
[1762721725756,1.04,165.65,165.63,3.04]
[1762721726063,5.47168135,165.66,165.63,3.04]
[1762721727166,6.51168135,165.66,165.63,3.04]
[1762721732171,5.47168135,165.66,165.63,3.04]
[1762721732372,0.03758135,165.66,165.64,3.06]
[1762721735374,1.07758135,165.66,165.64,3.06]
[1762721735869,0.03758135,165.66,165.64,3.06]
[1762721744978,5.47168135,165.66,165.64,3.06]
[1762721746179,6.51168135,165.66,165.64,3.06]
[1762721748286,5.47168135,165.66,165.64,3.06]
[1762721748685,1.04,165.65,165.62,3.00914394]
[1762721749183,0.03758135,165.66,165.62,3.00914394]
[1762721751292,1.07758135,165.66,165.62,3.00914394]
[1762721751791,6.51168135,165.66,165.62,3.00914394]
[1762721762303,1.04,165.65,165.62,3.00914394]
[1762721764003,1.04,165.64,165.62,3.00914394]
[1762721764199,6.4744,165.65,165.62,3.00914394]
[1762721764599,1.04,165.64,165.62,3.00914394]
[1762721764800,6.4744,165.65,165.62,3.00914394]
[1762721767004,1.04,165.64,165.62,3.00914394]
[1762721767499,6.4744,165.65,165.62,3.00914394]
[1762721769513,1.04,165.65,165.62,3.00914394]
[1762721772514,1.04,165.64,165.62,3.00914394]
[1762721774416,6.4744,165.65,165.62,3.00914394]
[1762721776322,1.04,165.64,165.62,3.00914394]
[1762721776714,6.4744,165.65,165.62,3.00914394]
[1762721779318,1.04,165.63,165.62,0.03914394]
[1762721779519,1.04,165.63,165.55,2.93]
[1762721779916,1.04,165.63,165.51,2.93]
[1762721780117,108.6581,165.72,165.56,2.93]
[1762721780118,1.04,165.71,165.56,2.93]
[1762721780314,1.04,165.71,165.59,2.93]
[1762721780514,0.04349317,165.67,165.63,0.03962789]
[1762721780717,0.04349317,165.67,165.63,2.96962789]
[1762721780718,1.04,165.66,165.63,2.96962789]
[1762721781021,1.04,165.65,165.63,2.96962789]
[1762721784035,1.04,165.64,165.54,1.89863235]
[1762721784231,1.04,165.64,165.55,2.93]
[1762721785124,6.5187718,165.61,165.58,2.9736857]
[1762721785325,6.52161841,165.61,165.58,2.97056379]
[1762721785831,6.4762,165.6,165.58,2.97056379]
[1762721786024,1.04,165.59,165.58,0.04056379]
[1762721789434,5.4362,165.6,165.58,2.97056379]
[1762721795335,1.04,165.57,165.55,3.08]
[1762721795536,6.4767,165.58,165.55,3.08]
[1762721795936,1.04,165.57,165.55,3.08]
[1762721796329,5.48307237,165.58,165.55,3.08]
[1762721796524,1.04,165.56,165.54,3.12541978]
[1762721796729,5.4371,165.57,165.54,3.12541978]
[1762721796930,1.04,165.57,165.54,3.12541978]
[1762721797131,0.04637237,165.58,165.54,0.04541978]
[1762721797132,1.04,165.55,165.54,0.04541978]
[1762721797642,1.04,165.53,165.51,3.08]
[1762721797932,6.478,165.54,165.51,3.08]
[1762721798843,1.04,165.53,165.51,3.12475274]
[1762721799036,6.51806531,165.54,165.51,3.12475274]
[1762721806943,1.08006531,165.54,165.51,3.12475274]
[1762721809754,6.51806531,165.54,165.51,3.12475274]
[1762721810152,1.04,165.53,165.51,3.12475274]
[1762721810755,5.47806531,165.54,165.51,3.12475274]
[1762721810956,6.51806531,165.54,165.51,3.12475274]
[1762721812358,5.47806531,165.54,165.51,3.12475274]
[1762721812957,6.51806531,165.54,165.51,3.12475274]
[1762721814255,0.04006531,165.54,165.52,2.99]
[1762721816360,0.04006531,165.54,165.53,2.99]
[1762721820656,0.04006531,165.54,165.52,4.20664943]
[1762721820962,0.04006531,165.54,165.53,2.99]
[1762721822562,0.04006531,165.54,165.51,3.11475274]
[1762721822860,1.08006531,165.54,165.51,3.11475274]
[1762721823264,0.04006531,165.54,165.51,3.11475274]
[1762721824061,5.47816531,165.54,165.51,3.11475274]
[1762721824562,1.04,165.53,165.51,3.11475274]
[1762721825063,1.04,165.53,165.51,0.04475274]
[1762721825966,6.4784,165.53,165.51,3.11475274]
[1762721827059,0.04006531,165.54,165.51,3.11475274]
[1762721827759,5.47806531,165.54,165.51,3.11475274]
[1762721828264,6.51806531,165.54,165.51,3.11475274]
[1762721831568,1.04,165.53,165.51,3.11475274]
[1762721832959,6.4784,165.53,165.51,3.11475274]
[1762721833358,1.04,165.52,165.51,0.04475274]
[1762721834669,6.4784,165.53,165.51,0.04475274]
[1762721835269,6.4784,165.53,165.51,3.11475274]
[1762721862189,1.05,165.52,165.51,3.11475274]
[1762721864096,5.4384,165.53,165.51,3.11475274]
[1762721864392,6.4884,165.53,165.51,3.11475274]
[1762721866494,1.05,165.52,165.51,0.04475274]
[1762721881405,0.04006531,165.54,165.44,3.12]
[1762721881406,1.04,165.48,165.44,3.12]
[1762721881609,1.04,165.58,165.44,3.12]
[1762721882318,5.4387,165.52,165.46,2.96]
[1762721882612,6.4787,165.52,165.5,2.96]
[1762721882915,1.04,165.51,165.49,3.00126263]
[1762721885710,0.04166816,165.53,165.49,3.00126263]
[1762721887312,5.48006816,165.53,165.49,3.00126263]
[1762721888208,6.52006816,165.53,165.49,3.00126263]
[1762721888407,5.4387,165.52,165.49,3.00126263]
[1762721895017,0.04166816,165.53,165.49,3.00126263]
[1762721895721,1.08166816,165.53,165.49,3.00126263]
[1762721896024,1.08166816,165.53,165.5,2.96]
[1762721897522,0.04166816,165.53,165.5,2.96]
[1762721899023,1.08166816,165.53,165.5,2.96]
[1762721899224,6.52006816,165.53,165.5,2.96]
[1762721899428,1.04,165.52,165.5,2.96]
[1762721900223,1.04,165.52,165.49,3.00126263]
[1762721900821,6.52006816,165.53,165.49,3.00126263]
[1762721901220,6.52006816,165.53,165.49,0.04126263]
[1762721901221,1.04,165.51,165.49,0.04126263]
[1762721901428,1.04,165.51,165.44,2.96]
[1762721902024,1.04,165.48,165.44,2.96]
[1762721902328,1.08350243,165.48,165.44,3.0060969]
[1762721902625,1.08350243,165.48,165.44,0.0460969]
[1762721902815,1.08350243,165.48,165.44,3.0060969]
[1762721903128,6.4803,165.47,165.44,3.0060969]
[1762721903326,1.04,165.46,165.44,3.0060969]
[1762721907324,1.04,165.45,165.44,0.0460969]
[1762721909329,1.04,165.42,165.39,2.96]
[1762721910236,1.08298244,165.42,165.39,3.00269881]
[1762721914135,6.52508244,165.42,165.39,3.00269881]
[1762721914336,1.05,165.41,165.39,3.00269881]
[1762721915334,1.05,165.4,165.39,0.04269881]
[1762721919532,1.01,165.33,165.25,5.4475]
[1762721919730,1.01,165.38,165.29,1.21912695]
[1762721919931,1.01,165.38,165.3,3.09]
[1762721920236,1.01,165.38,165.31,3.09]
[1762721920624,0.04539562,165.36,165.34,3.09]
[1762721925335,0.04539562,165.36,165.33,0.03876831]
[1762721925336,1.05539562,165.36,165.33,0.03876831]
[1762721925537,1.21912695,165.35,165.33,0.03876831]
[1762721925741,1.01,165.34,165.33,0.03876831]
[1762721926536,1.01,165.34,165.28,3.09]
[1762721926839,10.884,165.42,165.25,3.09]